bitfinex-derivatives/quotes_ETHF0:USTF0_20260119
["timestamp","ask_amount","ask_price","bid_price","bid_amount"]
[1768808519255,1.04007737,3204.5,3203.2,1.04007737]
[1768808519457,0.90119995,3204.4,3203.2,1.04007737]
[1768808519657,1.04007737,3204.5,3203.2,1.04007737]
[1768808519864,0.90119995,3204.4,3203.2,1.04007737]
[1768808520158,1.04007737,3204.5,3203.2,1.04007737]
[1768808520360,0.90124327,3204.4,3203.2,1.04007737]
[1768808520552,0.00468318,3204.7,3203.3,0.14226932]
[1768808520763,0.90122408,3204.6,3203.4,1.18234669]
[1768808521058,1.04476055,3204.7,3203.4,1.18234669]
[1768808521957,0.90095353,3204.6,3203.4,1.18234669]
[1768808522259,1.04476055,3204.7,3203.4,1.18234669]
[1768808522445,1.04007737,3204.5,3203.0,1.04007737]
[1768808522857,1.04007737,3204.5,3203.1,0.14226932]
[1768808523252,1.04007737,3204.5,3203.1,1.18234669]
[1768808524161,0.00468318,3204.7,3203.5,1.18234669]
[1768808524361,0.00468318,3204.7,3203.7,1.04007737]
[1768808526265,0.00468318,3204.7,3203.5,1.18234669]
[1768808527961,0.00468318,3204.7,3203.6,0.14226932]
[1768808529568,1.04007737,3204.6,3203.6,0.14226932]
[1768808530567,0.00468318,3204.7,3203.2,0.15617]
[1768808530568,1.04007737,3204.4,3203.2,0.29843932]
[1768808531165,1.04007737,3204.2,3203.2,0.29843932]
[1768808532868,0.00468318,3204.7,3203.2,0.29843932]
[1768808533065,1.04007737,3204.4,3203.2,0.29843932]
[1768808535669,1.04007737,3204.4,3203.3,0.14226932]
[1768808535864,1.04007737,3204.6,3203.3,0.14226932]
[1768808536166,1.04007737,3204.6,3203.4,0.14226932]
[1768808536369,0.00468318,3204.7,3203.4,0.14226932]
[1768808539170,0.00468318,3204.7,3203.4,2.30126932]
[1768808539464,0.00468318,3204.7,3203.5,0.14226932]
[1768808540962,0.00468318,3204.7,3203.4,2.159]
[1768808543574,0.00468318,3204.7,3203.4,2.29385979]
[1768808543871,0.00468318,3204.7,3203.5,0.13485979]
[1768808553479,0.00468318,3204.7,3203.3,0.15617]
[1768808554081,0.00468318,3204.7,3203.3,0.29102979]
[1768808556484,0.00468318,3204.7,3203.4,0.13485979]
[1768808561785,1.03965735,3204.4,3203.4,0.13485979]
[1768808563090,0.00468318,3204.7,3203.4,0.13485979]
[1768808563282,0.90113781,3204.6,3203.4,0.13485979]
[1768808563478,0.90113781,3204.5,3202.8,3.122]
[1768808563675,0.00468318,3204.7,3202.9,0.13303241]
[1768808563989,0.90099674,3204.6,3202.9,0.13303241]
[1768808564190,0.90099674,3204.5,3202.9,0.13303241]
[1768808564490,0.14230181,3204.7,3202.9,0.13303241]
[1768808564680,1.03965735,3204.3,3202.9,0.13303241]
[1768808567893,0.14230181,3204.7,3202.9,0.13303241]
[1768808568099,1.03965735,3204.5,3202.9,0.13303241]
[1768808581292,0.14116013,3204.7,3202.9,0.13303241]
[1768808581494,0.90089996,3204.6,3202.9,0.13303241]
[1768808581796,0.90089996,3204.5,3202.9,0.13303241]
[1768808582002,0.14116013,3204.7,3202.9,0.13303241]
[1768808582207,0.90088341,3204.6,3202.9,0.13303241]
[1768808582402,0.90088341,3204.5,3202.9,0.13303241]
[1768808582602,0.14116013,3204.7,3202.9,0.13303241]
[1768808582802,0.90091735,3204.6,3202.9,0.13303241]
[1768808583001,0.90091735,3204.5,3202.9,0.13303241]
[1768808583204,0.14116013,3204.7,3202.9,0.13303241]
[1768808583397,0.90096586,3204.6,3202.9,0.13303241]
[1768808583704,0.90096586,3204.5,3202.9,0.13303241]
[1768808584000,0.14116013,3204.7,3202.9,0.13303241]
[1768808584301,0.90096571,3204.6,3202.9,0.13303241]
[1768808584502,0.90096571,3204.5,3202.9,0.13303241]
[1768808584702,0.14116013,3204.7,3202.9,0.13303241]
[1768808584904,0.90102565,3204.6,3202.9,0.13303241]
[1768808585098,0.90102565,3204.5,3202.9,0.13303241]
[1768808585298,0.13647695,3204.6,3202.9,0.13303241]
[1768808585497,0.90108259,3204.5,3202.9,0.13303241]
[1768808585697,0.13647695,3204.6,3202.9,0.13303241]
[1768808585995,0.9010826,3204.5,3202.9,0.13303241]
[1768808586195,0.13647695,3204.6,3202.9,0.13303241]
[1768808586396,0.90115086,3204.5,3202.9,0.13303241]
[1768808586597,0.90115135,3204.4,3202.9,0.13303241]
[1768808586796,0.13647695,3204.6,3202.9,0.13303241]
[1768808586996,0.90117361,3204.5,3202.9,0.13303241]
[1768808587197,0.90117361,3204.4,3202.9,0.13303241]
[1768808587400,0.13647695,3204.6,3202.9,0.13303241]
[1768808587596,0.90126623,3204.5,3202.9,0.13303241]
[1768808587799,1.94092358,3204.4,3202.9,0.13303241]
[1768808588001,1.1761343,3204.4,3202.9,0.13303241]
[1768808589411,1.03965735,3204.0,3202.7,2.159]
[1768808593310,1.03965735,3204.0,3202.7,2.28959414]
[1768808594704,1.03965735,3204.0,3202.7,0.13059414]
[1768808596204,0.13647695,3204.3,3202.7,0.13059414]
[1768808596404,0.9014025,3204.2,3202.7,0.13059414]
[1768808596604,0.13647695,3204.3,3202.7,0.13059414]
[1768808596899,0.9014025,3204.2,3202.7,0.13059414]
[1768808597103,0.13647695,3204.3,3202.7,0.13059414]
[1768808597320,0.90137506,3204.2,3202.7,0.13059414]
[1768808597509,0.13647695,3204.3,3202.7,0.13059414]
[1768808597802,0.90135843,3204.2,3202.7,0.13059414]
[1768808598004,0.13647695,3204.3,3202.7,0.13059414]
[1768808598206,0.90135016,3204.2,3202.7,0.13059414]
[1768808598406,0.13647695,3204.3,3202.7,0.13059414]
[1768808598607,0.90133443,3204.2,3202.7,0.13059414]
[1768808598808,0.13647695,3204.3,3202.7,0.13059414]
[1768808599108,1.04017171,3204.1,3202.8,0.13059414]
[1768808603414,1.04017171,3203.9,3202.8,0.13059414]
[1768808610314,1.04017171,3204.1,3202.8,0.13059414]
[1768808611018,1.04017171,3204.2,3202.8,0.13059414]
[1768808611920,1.04017171,3204.2,3202.9,1.17517819]
[1768808614517,1.04017171,3204.2,3203.0,0.13500648]
[1768808622724,0.00468318,3204.7,3203.4,1.04017171]
[1768808622924,0.90189784,3204.6,3203.4,1.04017171]
[1768808623122,1.04017171,3204.5,3203.2,0.13451986]
[1768808623319,1.04017171,3204.3,3203.2,0.13451986]
[1768808626722,1.04017171,3204.5,3203.2,0.13451986]
[1768808627327,1.04017171,3204.3,3203.0,2.159]
[1768808629033,1.04017171,3204.3,3203.0,3.19917171]
[1768808629228,1.18101112,3204.5,3203.0,3.19917171]
[1768808629923,1.18101112,3204.5,3203.0,1.04017171]
[1768808631530,0.00468318,3204.7,3203.6,1.17469157]
[1768808631727,0.00468318,3204.7,3204.0,1.04017171]
[1768808632132,0.00468318,3204.7,3203.6,1.96051986]
[1768808632133,0.00468318,3204.7,3203.7,1.04017171]
[1768808632633,0.00468318,3204.7,3203.7,1.19632171]
[1768808634035,0.00468318,3204.7,3203.8,0.13079741]
[1768808634241,0.00468318,3204.7,3203.9,1.04017171]
[1768808635333,0.00468318,3204.7,3203.8,0.13079741]
[1768808639532,1.04485489,3204.7,3203.7,0.15615]
[1768808639938,1.04017171,3204.3,3203.4,0.13079741]
[1768808640139,1.04017171,3204.1,3203.0,0.13079741]
[1768808640336,1.04017171,3203.9,3203.0,0.13079741]
[1768808640537,0.00468318,3204.7,3203.3,1.04017171]
[1768808640729,1.04017171,3204.6,3203.3,1.04017171]
[1768808640927,1.04017171,3204.6,3202.9,1.825]
[1768808640928,1.04017171,3204.6,3203.2,0.13079741]
[1768808641437,1.04017171,3204.4,3203.2,0.13079741]
[1768808642943,1.04017171,3204.6,3203.2,0.13079741]
[1768808643734,0.00468318,3204.7,3203.2,0.13079741]
[1768808643935,1.04485489,3204.7,3203.3,1.04017171]
[1768808646847,0.00468318,3204.7,3203.3,1.04017171]
[1768808647040,1.04017171,3204.6,3203.3,1.04017171]
[1768808648444,0.00468318,3204.7,3203.2,1.17096912]
[1768808648646,0.00468318,3204.7,3203.4,1.04017171]
[1768808649848,0.00468318,3204.7,3203.4,1.17096912]
[1768808655760,0.00468318,3204.7,3203.6,1.04017171]
[1768808656661,0.00468318,3204.7,3203.5,1.17096912]
[1768808657362,0.00468318,3204.7,3203.5,0.13079741]
[1768808657563,0.00468318,3204.7,3203.5,1.17096912]
[1768808657759,0.00468318,3204.7,3203.6,0.13079741]
[1768808658362,0.00468318,3204.7,3203.7,1.17096912]
[1768808659760,0.00468318,3204.7,3203.7,0.13079741]
[1768808664169,0.1321154,3206.1,3203.9,0.14015197]
[1768808664370,0.90081208,3206.0,3204.1,0.14015197]
[1768808664565,0.90081208,3205.9,3204.1,0.14015197]
[1768808664762,40.9321154,3206.1,3204.1,0.14015197]
[1768808664962,0.90483951,3206.0,3204.1,0.14015197]
[1768808665173,0.90483951,3205.9,3204.1,0.14015197]
[1768808665474,0.1321154,3205.5,3204.1,0.14015197]
[1768808668274,0.1321154,3205.5,3204.0,1.824]
[1768808669075,0.1321154,3205.3,3203.3,0.14015197]
[1768808674178,0.90551773,3205.2,3203.3,0.14015197]
[1768808674474,0.1321154,3205.6,3203.9,1.03967727]
[1768808674669,0.90548596,3205.5,3204.0,0.14015197]
[1768808674869,1.25791458,3206.0,3204.0,0.14015197]
[1768808675179,0.90547035,3205.9,3204.0,0.14015197]
[1768808675380,0.90547035,3205.8,3204.0,0.14015197]
[1768808675576,0.90547035,3205.7,3204.0,0.14015197]
[1768808675771,0.90547035,3205.6,3204.0,0.14015197]
[1768808675966,0.90547035,3205.5,3204.0,0.14015197]
[1768808676280,1.25791458,3206.0,3204.0,0.14015197]
[1768808676480,0.90543491,3205.9,3204.0,0.14015197]
[1768808676670,0.90543491,3205.8,3204.0,0.14015197]
[1768808676870,0.90543491,3205.7,3204.0,0.14015197]
[1768808677072,0.90543491,3205.6,3204.0,0.14015197]
[1768808677273,1.25791458,3206.0,3204.0,0.14015197]
[1768808677474,0.90540232,3205.9,3204.0,0.14015197]
[1768808677675,0.90540232,3205.8,3204.0,0.14015197]
[1768808677874,0.90540232,3205.7,3204.0,0.14015197]
[1768808678072,0.90540232,3205.6,3204.0,0.14015197]
[1768808678272,0.1321154,3205.9,3204.0,0.14015197]
[1768808678577,0.90529833,3205.8,3204.0,0.14015197]
[1768808678786,0.1321154,3205.9,3204.0,0.14015197]
[1768808678974,0.90529853,3205.8,3204.0,0.14015197]
[1768808679174,0.1321154,3205.9,3204.0,0.14015197]
[1768808679477,0.90529837,3205.8,3204.0,0.14015197]
[1768808679680,0.1321154,3205.9,3204.0,0.14015197]
[1768808679872,0.90520609,3205.8,3204.0,0.14015197]
[1768808680074,0.1321154,3205.9,3204.0,0.14015197]
[1768808680376,0.90520639,3205.8,3204.0,0.14015197]
[1768808680573,0.1321154,3205.9,3204.0,0.14015197]
[1768808680876,0.90516452,3205.8,3204.0,0.14015197]
[1768808681076,0.1321154,3205.9,3204.0,0.14015197]
[1768808681275,0.90516482,3205.8,3204.0,0.14015197]
[1768808681575,0.1321154,3205.9,3204.0,0.14015197]
[1768808681874,0.90514264,3205.8,3204.0,0.14015197]
[1768808682073,0.1321154,3205.9,3204.0,0.14015197]
[1768808682279,1.04741791,3205.8,3204.0,0.14015197]
[1768808682474,0.14224132,3205.8,3204.0,0.14015197]
[1768808683082,0.90517022,3205.7,3204.0,0.14015197]
[1768808683281,0.14224132,3205.8,3204.0,0.14015197]
[1768808683492,1.04743521,3205.7,3204.0,0.14015197]
[1768808683782,0.14224132,3205.7,3204.0,0.14015197]
[1768808685384,2.5364417,3206.0,3204.0,0.14015197]
[1768808685684,0.9052177,3205.9,3204.0,0.14015197]
[1768808685880,0.9052177,3205.8,3204.0,0.14015197]
[1768808686080,0.9052177,3205.7,3204.0,0.14015197]
[1768808686280,2.542,3205.9,3204.0,0.14015197]
[1768808686481,0.90523192,3205.8,3204.0,0.14015197]
[1768808686787,0.90523192,3205.7,3204.0,0.14015197]
[1768808686984,2.542,3205.9,3204.0,0.14015197]
[1768808687184,0.90523218,3205.8,3204.0,0.14015197]
[1768808687384,0.90523218,3205.7,3204.0,0.14015197]
[1768808687585,2.542,3205.9,3204.0,0.14015197]
[1768808687887,0.90526373,3205.8,3204.0,0.14015197]
[1768808688194,0.90526373,3205.7,3204.0,0.14015197]
[1768808688500,2.68668302,3206.0,3204.0,0.14015197]
[1768808688695,0.90530882,3205.9,3204.0,0.14015197]
[1768808688986,0.90530882,3205.8,3204.0,0.14015197]
[1768808689187,0.90530882,3205.7,3204.0,0.14015197]
[1768808689386,0.14224132,3205.9,3204.0,0.14015197]
[1768808689587,0.90536903,3205.8,3204.0,0.14015197]
[1768808689790,0.90536903,3205.7,3204.0,0.14015197]
[1768808689990,0.14224132,3205.9,3204.0,0.14015197]
[1768808690288,0.9053692,3205.8,3204.0,0.14015197]
[1768808690492,0.9053692,3205.7,3204.6,0.00468318]
[1768808690692,0.14224132,3205.9,3204.6,0.00468318]
[1768808690989,0.90544419,3205.8,3204.6,0.00468318]
[1768808691188,0.90544419,3205.7,3204.6,0.00468318]
[1768808691390,0.14224132,3205.9,3204.6,0.00468318]
[1768808691590,0.90553105,3205.8,3204.6,0.00468318]
[1768808691785,0.90553105,3205.7,3204.6,0.00468318]
[1768808692087,0.14224132,3205.9,3204.6,0.00468318]
[1768808692285,0.90553105,3205.8,3204.6,0.00468318]
[1768808692491,0.90553105,3205.7,3204.6,0.00468318]
[1768808692790,0.14224132,3205.9,3204.6,0.00468318]
[1768808692990,0.9056308,3205.8,3204.6,0.00468318]
[1768808693192,0.9056308,3205.7,3204.6,0.00468318]
[1768808693386,0.14224132,3205.9,3204.6,0.00468318]
[1768808693691,0.90575179,3205.8,3204.6,0.00468318]
[1768808693890,0.90575179,3205.7,3204.6,0.00468318]
[1768808694191,0.14224132,3205.9,3204.6,0.00468318]
[1768808694392,0.90575056,3205.8,3204.6,0.00468318]
[1768808694689,0.90575056,3205.7,3204.6,0.00468318]
[1768808694885,0.14224132,3205.9,3204.6,0.00468318]
[1768808695191,0.90576752,3205.8,3204.6,0.00468318]
[1768808695388,0.13665876,3205.6,3204.6,0.00468318]
[1768808695584,1.03967727,3205.4,3203.9,2.159]
[1768808695785,0.13665876,3205.2,3203.9,2.159]
[1768808697493,0.13665876,3205.2,3203.6,0.13617857]
[1768808700292,0.00468318,3205.5,3203.7,0.13617857]
[1768808700494,0.90589975,3205.4,3203.7,0.13617857]
[1768808700694,0.00468318,3205.5,3204.1,0.13617857]
[1768808702196,0.00468318,3205.5,3203.8,0.15615]
[1768808702197,0.14134194,3205.5,3203.8,0.15615]
[1768808702500,0.14134194,3205.5,3203.7,0.13617857]
[1768808702501,1.04276623,3205.4,3203.7,0.13617857]
[1768808702697,0.13665876,3205.4,3203.7,0.13617857]
[1768808709705,0.00468318,3205.5,3203.7,0.13617857]
[1768808709905,0.00468318,3205.5,3203.5,2.31516]
[1768808709906,0.90633658,3205.4,3203.9,0.13617857]
[1768808710104,0.00468318,3205.5,3203.9,0.13617857]
[1768808710305,0.90632758,3205.4,3203.9,0.13617857]
[1768808710507,0.00468318,3205.5,3203.9,0.13617857]
[1768808710707,0.90632237,3205.4,3203.9,0.13617857]
[1768808710907,0.00468318,3205.5,3203.9,0.13617857]
[1768808711112,0.90631501,3205.4,3203.9,0.13617857]
[1768808711405,0.00468318,3205.5,3203.9,0.13617857]
[1768808711605,0.9063278,3205.4,3203.9,0.13617857]
[1768808711801,0.00468318,3205.5,3203.9,0.13617857]
[1768808712003,0.9063278,3205.4,3203.9,0.13617857]
[1768808712308,0.00468318,3205.5,3203.9,0.13617857]
[1768808712508,0.90634584,3205.4,3203.9,0.13617857]
[1768808712700,0.00468318,3205.5,3203.9,0.13617857]
[1768808712901,0.90634584,3205.4,3203.9,0.13617857]
[1768808713211,0.00468318,3205.5,3203.9,0.13617857]
[1768808713395,0.90634512,3205.4,3203.9,0.13617857]
[1768808713599,0.00468318,3205.5,3203.9,0.13617857]
[1768808713798,0.90634496,3205.4,3203.9,0.13617857]
[1768808714006,0.00468318,3205.5,3203.9,0.13617857]
[1768808714208,0.90634513,3205.4,3203.9,0.13617857]
[1768808714507,0.00468318,3205.5,3203.9,0.13617857]
[1768808714706,0.90634575,3205.4,3203.9,0.13617857]
[1768808714909,0.00468318,3205.5,3203.9,0.13617857]
[1768808715207,0.90634575,3205.4,3203.9,0.13617857]
[1768808715407,0.00468318,3205.5,3203.9,0.13617857]
[1768808715608,0.90634969,3205.4,3203.9,0.13617857]
[1768808715805,0.00468318,3205.5,3203.9,0.13617857]
[1768808716006,0.90634969,3205.4,3203.9,0.13617857]
[1768808716309,0.00468318,3205.5,3203.9,0.13617857]
[1768808716510,0.90637958,3205.4,3203.9,0.13617857]
[1768808716707,0.00468318,3205.5,3203.9,0.13617857]
[1768808716912,0.90637958,3205.4,3203.9,0.13617857]
[1768808717102,0.00468318,3205.5,3203.9,0.13617857]
[1768808720910,0.00468318,3205.5,3203.7,0.15615]
[1768808720911,0.00468318,3205.5,3204.3,1.17541622]
[1768808728006,0.00468318,3205.5,3204.5,1.03923765]
[1768808729210,0.00468318,3205.5,3204.5,1.173421]
[1768808729615,0.00468318,3205.5,3204.8,1.03923765]
[1768808729911,0.00468318,3205.5,3204.8,1.17656291]
[1768808733825,0.00468318,3205.5,3204.9,0.13418335]
[1768808735723,0.0034417,3206.0,3204.9,0.13886653]
[1768808738022,0.0034417,3206.0,3205.0,1.03923765]
[1768808738325,0.0034417,3206.0,3205.0,1.173421]
[1768808739719,0.0034417,3206.0,3205.1,0.144258]
[1768808741920,0.0034417,3206.0,3205.2,1.03923765]
[1768808742124,0.0034417,3206.0,3205.2,1.18349565]
[1768808743220,0.0034417,3206.0,3205.3,0.144258]
[1768808744228,0.0034417,3206.0,3205.0,1.03923765]
[1768808745227,0.0034417,3206.0,3204.9,0.14894118]
[1768808745431,0.0034417,3206.0,3204.9,1.18817883]
[1768808745929,1.03923765,3205.9,3204.9,0.00468318]
[1768808746328,1.03923765,3205.3,3204.1,0.144258]
[1768808746639,1.03923765,3205.5,3204.1,1.18349565]
[1768808747429,1.03923765,3205.5,3204.1,0.14820399]
[1768808749031,0.00468318,3205.7,3204.2,1.18349565]
[1768808749232,1.04392083,3205.7,3204.2,1.18349565]
[1768808750136,1.04392083,3205.7,3204.4,1.03923765]
[1768808750346,1.04392083,3205.7,3204.2,1.18349565]
[1768808754051,1.04392083,3205.7,3204.3,0.13216479]
[1768808754240,1.04392083,3205.7,3204.3,1.17140244]
[1768808755350,0.00468318,3205.7,3204.4,0.13216479]
[1768808756943,0.00468318,3205.7,3204.5,1.17140244]
[1768808758746,0.0034417,3206.0,3205.2,1.03923765]
[1768808759050,0.0034417,3206.0,3205.2,1.17140244]
[1768808759244,0.0034417,3206.0,3205.2,0.13216479]
[1768808759849,0.0034417,3206.0,3204.8,0.00468318]
[1768808760049,1.03923765,3205.9,3204.8,0.00468318]
[1768808760553,0.0034417,3206.0,3204.8,1.17608562]
[1768808760858,0.0034417,3206.0,3205.1,0.13216479]
[1768808762158,1.03923765,3205.9,3205.1,0.13216479]
[1768808762659,0.0034417,3206.0,3205.1,0.13216479]
[1768808762857,1.03923765,3205.8,3204.8,0.00468318]
[1768808763764,0.0034417,3206.0,3204.8,0.00468318]
[1768808763765,1.03923765,3205.6,3204.8,0.00468318]
[1768808765859,1.03923765,3205.7,3204.8,0.00468318]
[1768808766449,1.03923765,3205.5,3204.8,0.00468318]
[1768808769360,1.03923765,3205.7,3204.8,0.00468318]
[1768808778265,0.0034417,3206.0,3204.8,0.00468318]
[1768808778464,1.94562437,3205.9,3204.8,0.00468318]
[1768808778661,0.90638672,3205.8,3204.8,0.00468318]
[1768808778863,0.90638672,3205.7,3204.8,0.00468318]
[1768808779064,1.03923765,3205.9,3204.8,0.00468318]
[1768808779262,0.90638669,3205.8,3204.8,0.00468318]
[1768808779463,0.90638669,3205.7,3204.8,0.00468318]
[1768808779664,1.03923765,3205.9,3204.8,0.00468318]
[1768808782868,0.0034417,3206.0,3204.8,0.00468318]
[1768808783070,0.90643667,3205.9,3204.8,0.00468318]
[1768808783267,0.0034417,3206.0,3204.8,0.00468318]
[1768808783461,0.90645594,3205.9,3204.8,0.00468318]
[1768808783662,0.0034417,3206.0,3204.8,0.00468318]
[1768808783863,0.90645594,3205.9,3204.8,0.00468318]
[1768808784064,0.0034417,3206.0,3204.8,0.00468318]
[1768808784263,0.90645594,3205.9,3204.8,0.00468318]
[1768808784563,0.0034417,3206.0,3204.8,0.00468318]
[1768808784764,0.90647847,3205.9,3204.8,0.00468318]
[1768808784967,0.0034417,3206.0,3204.8,0.00468318]
[1768808785166,0.90647842,3205.9,3204.8,0.00468318]
[1768808785474,0.0034417,3206.0,3204.8,0.00468318]
[1768808785675,0.90679306,3205.9,3204.8,0.00468318]
[1768808785866,0.0034417,3206.0,3204.8,0.00468318]
[1768808786066,0.90679306,3205.9,3204.8,0.00468318]
[1768808786271,0.0034417,3206.0,3204.8,0.00468318]
[1768808786471,0.90682283,3205.9,3204.8,0.00468318]
[1768808786670,0.0034417,3206.0,3204.8,0.00468318]
[1768808786870,0.90682298,3205.9,3204.8,0.00468318]
[1768808787070,0.0034417,3206.0,3204.8,0.00468318]
[1768808787272,0.90681837,3205.9,3204.8,0.00468318]
[1768808787476,0.0034417,3206.0,3204.8,0.00468318]
[1768808787668,0.0034417,3206.0,3204.8,0.14721763]
[1768808808579,0.0034417,3206.0,3204.8,0.00468318]
[1768808808767,1.04759518,3205.9,3204.8,0.00468318]
[1768808808968,0.90651407,3205.8,3204.8,0.00468318]
[1768808809172,0.14110481,3205.9,3204.8,0.00468318]
[1768808809371,1.03908665,3205.7,3204.4,0.13240165]
[1768808809576,0.00468318,3205.6,3204.4,0.13240165]
[1768808815173,0.00468318,3205.6,3204.1,1.82094599]
[1768808815380,0.14131221,3205.6,3204.1,1.82094599]
[1768808815786,0.14131221,3205.6,3204.1,1.96160417]
[1768808819086,1.03908665,3205.1,3204.1,0.00394599]
[1768808820182,1.03908665,3205.0,3204.1,0.00394599]
[1768808820575,41.83908665,3205.4,3204.1,0.00394599]
[1768808820782,0.90807228,3205.3,3204.1,0.00394599]
[1768808820995,0.90807228,3205.2,3204.1,0.00394599]
[1768808821179,40.8,3205.4,3204.1,0.00394599]
[1768808821381,0.90767802,3205.3,3204.1,0.00394599]
[1768808821591,0.90767802,3205.2,3204.1,0.00394599]
[1768808823278,1.03908665,3205.3,3204.1,0.00394599]
[1768808825095,40.93662903,3205.4,3204.1,0.00394599]
[1768808826285,0.15606,3205.5,3204.1,0.14460417]
[1768808826487,0.00468318,3205.6,3204.1,0.14460417]
[1768808826692,0.90676497,3205.5,3204.1,0.14460417]
[1768808826880,0.00468318,3205.6,3204.1,0.14460417]
[1768808827082,0.90676323,3205.5,3204.1,0.14460417]
[1768808827283,0.00468318,3205.6,3204.1,0.14460417]
[1768808827484,0.90675053,3205.5,3204.1,0.14460417]
[1768808827788,0.00468318,3205.6,3204.1,0.14460417]
[1768808843392,0.00468318,3205.6,3204.2,0.14241546]
[1768808843597,0.00468318,3205.6,3204.2,3.41954546]
[1768808843793,0.00468318,3205.6,3204.3,0.14241546]
[1768808843990,0.00468318,3205.6,3204.4,0.14241546]
[1768808845096,0.00468318,3205.6,3204.7,0.14241546]
[1768808854101,1.04362926,3205.6,3204.7,0.14241546]
[1768808854302,1.04362926,3205.6,3204.3,1.95741546]
[1768808854904,1.03894608,3205.4,3204.3,1.815]
[1768808855605,0.00468318,3205.6,3204.3,1.815]
[1768808855903,1.03894608,3205.4,3204.3,1.815]
[1768808856903,1.03894608,3205.1,3204.3,1.815]
[1768808857898,1.03894608,3205.2,3204.3,1.815]
[1768808858098,1.03894608,3205.2,3204.1,0.00394599]
[1768808862103,0.00468318,3205.6,3204.1,1.18465844]
[1768808862309,1.94810654,3205.5,3204.2,0.14176637]
[1768808862508,1.03894608,3205.5,3204.2,0.14176637]
[1768808862709,0.00468318,3205.6,3204.6,0.14176637]
[1768808863111,0.00468318,3205.6,3204.4,1.03894608]
[1768808863407,1.04362926,3205.6,3204.4,1.03894608]
[1768808863608,1.04362926,3205.6,3204.3,0.14176637]
[1768808867814,0.00468318,3205.6,3204.3,0.14176637]
[1768808868021,1.04362926,3205.6,3204.3,0.14176637]
[1768808869910,1.18449505,3205.6,3204.1,1.04289207]
[1768808870112,1.03894608,3205.4,3204.1,0.00394599]
[1768808870308,1.03894608,3205.4,3204.1,0.14571236]
[1768808870514,1.03894608,3205.2,3204.1,0.14571236]
[1768808872719,1.03894608,3205.2,3204.1,0.00394599]
[1768808874824,1.03894608,3205.0,3204.1,0.00394599]
[1768808875217,1.17115256,3205.2,3204.1,0.00394599]
[1768808880519,0.00468318,3205.6,3204.1,0.00394599]
[1768808880520,1.03894608,3205.4,3204.1,0.00394599]
[1768808880721,0.13688966,3205.6,3204.2,1.03894608]
[1768808880917,0.91175449,3205.5,3204.2,1.03894608]
[1768808881118,1.17583574,3205.6,3204.2,1.03894608]
[1768808881317,0.91186435,3205.5,3204.2,1.03894608]
[1768808881616,1.17583574,3205.6,3204.2,1.03894608]
[1768808881809,1.03894608,3205.2,3204.1,0.00394599]
[1768808882013,0.13220648,3205.4,3204.1,0.00394599]
[1768808882213,1.03894608,3205.3,3204.1,0.00394599]
[1768808882414,0.13220648,3205.4,3204.1,0.00394599]
[1768808882715,1.17115256,3205.4,3204.1,0.00394599]
[1768808883722,1.03894608,3205.2,3204.1,0.00394599]
[1768808884121,1.03894608,3204.7,3204.1,0.00394599]
[1768808884424,1.03894608,3204.7,3204.1,0.0019422]
[1768808884925,0.13220648,3205.1,3204.1,0.0019422]
[1768808885117,1.03894608,3204.7,3204.1,0.0019422]
[1768808885315,1.03894608,3204.7,3203.8,3.121]
[1768808885316,1.03894608,3204.5,3203.7,1.815]
[1768808886125,1.03894608,3204.3,3203.0,0.15618]
[1768808886323,1.03894608,3204.3,3203.0,1.97267119]
[1768808886916,0.00468318,3204.0,3203.0,1.97267119]
[1768808887118,0.00468318,3204.0,3203.0,3.01161727]
[1768808888322,0.00468318,3204.0,3203.2,1.03894608]
[1768808889126,0.00468318,3204.0,3203.3,0.13276368]
[1768808889331,0.00468318,3204.0,3203.4,1.03894608]
[1768808889839,0.00468318,3204.0,3203.3,0.13276368]
[1768808890021,0.00468318,3204.0,3203.2,1.03894608]
[1768808890220,0.00468318,3204.0,3203.0,3.14438095]
[1768808891629,0.00468318,3204.0,3203.0,2.10543487]
[1768808891844,0.00468318,3204.0,3203.1,1.03894608]
[1768808894335,0.00468318,3204.0,3203.1,1.17170976]
[1768808894633,0.00468318,3204.0,3203.2,0.13276368]
[1768808899743,0.00468318,3204.0,3203.0,1.81649119]
[1768808899744,1.04362926,3204.0,3203.0,1.81649119]
[1768808901641,0.00468318,3204.0,3203.0,1.81649119]
[1768808906947,42.06348761,3205.2,3203.3,0.13170824]
[1768808907148,0.91076438,3205.1,3203.3,0.13170824]
[1768808907348,1.26348761,3205.6,3203.5,0.13170824]
[1768808907549,0.91075602,3205.5,3203.5,0.13170824]
[1768808907745,0.91075602,3205.4,3203.5,0.13170824]
[1768808907952,40.94132262,3205.6,3203.5,0.13170824]
[1768808908145,0.91069823,3205.5,3203.5,0.13170824]
[1768808908450,0.91069823,3205.4,3203.5,0.13170824]
[1768808908650,40.94132262,3205.6,3203.5,0.13170824]
[1768808908950,0.91075432,3205.5,3203.5,0.13170824]
[1768808909151,40.94132262,3205.6,3203.5,0.13170824]
[1768808909452,0.91078832,3205.5,3203.5,0.13170824]
[1768808909654,40.94132262,3205.6,3203.5,0.28786824]
[1768808909849,0.91078799,3205.5,3203.6,0.13170824]
[1768808910152,40.94132262,3205.6,3203.6,0.13170824]
[1768808910452,0.91074239,3205.5,3203.6,0.13170824]
[1768808910655,40.94132262,3205.6,3203.8,0.13170824]
[1768808910851,6.50176432,3206.0,3204.0,0.13170824]
[1768808911045,0.91070198,3205.9,3204.0,0.13170824]
[1768808911244,41.71070198,3205.8,3204.0,0.13170824]
[1768808911446,40.8,3205.8,3204.0,0.13170824]
[1768808911850,0.14476432,3206.0,3204.0,0.13170824]
[1768808912051,0.91061653,3205.9,3204.0,0.13170824]
[1768808912256,0.91061653,3205.8,3204.0,0.13170824]
[1768808912557,40.8,3205.9,3204.0,0.13170824]
[1768808912763,0.91053991,3205.8,3204.0,0.13170824]
[1768808912951,40.8,3205.9,3204.0,0.13170824]
[1768808913146,0.91054008,3205.8,3204.0,0.13170824]
[1768808913350,40.8,3205.9,3204.0,0.13170824]
[1768808913562,1.05178624,3205.8,3204.0,0.13170824]
[1768808913751,0.14132262,3205.8,3204.0,0.13170824]
[1768808917366,0.14132262,3205.8,3204.1,2.29070824]
[1768808917662,0.14132262,3205.8,3204.2,0.13170824]
[1768808922664,1.03972172,3205.9,3204.2,0.13170824]
[1768808923160,1.03972172,3205.9,3204.3,0.14007331]
[1768808923962,1.17650723,3205.9,3204.3,0.14007331]
[1768808930359,3.78450723,3205.9,3204.3,0.14007331]
[1768808931866,0.13678551,3205.9,3204.3,0.14007331]
[1768808932066,2.74878551,3205.9,3204.3,0.14007331]
[1768808932465,2.75078551,3205.9,3204.3,0.14007331]
[1768808934561,2.75678551,3205.9,3204.3,0.14007331]
[1768808934877,2.75678551,3205.9,3204.3,2.29907331]
[1768808936870,0.13678551,3205.9,3204.4,0.13852471]
[1768808937065,2.76378551,3205.9,3204.4,0.13852471]
[1768808937776,2.76378551,3205.9,3204.8,0.00468318]
[1768808937974,2.76578551,3205.9,3204.8,0.00468318]
[1768808939270,0.13678551,3205.9,3204.8,0.00468318]
[1768808940170,0.91221712,3205.8,3204.8,0.00468318]